bitfinex/quotes_ETHUSD_20241130
["timestamp","ask_amount","ask_price","bid_price","bid_amount"]
[1732960918233,0.55,3693.5,3693.4,2.70753]
[1732960919005,0.55,3693.7,3693.4,2.70753]
[1732960919694,0.55,3693.7,3693.5,0.02872212]
[1732960920108,0.55,3694.0,3693.7,2.70725]
[1732960920309,0.8022,3694.3,3693.5,0.92853107]
[1732960920526,0.25350694,3694.2,3693.8,2.73589999]
[1732960920724,1.80899627,3694.3,3693.9,0.02865262]
[1732960920917,0.25349648,3694.2,3693.9,0.02865262]
[1732960921228,1.80899627,3694.3,3693.9,0.02865262]
[1732960921426,0.25349509,3694.2,3693.9,0.02865262]
[1732960921630,0.55,3694.1,3693.9,0.02865262]
[1732960921816,0.55,3694.2,3693.9,0.02865262]
[1732960924201,1.05657963,3694.2,3693.9,0.02865262]
[1732960924509,1.05657963,3694.2,3694.0,0.02863524]
[1732960924842,1.05657963,3694.2,3693.7,2.7073]
[1732960925129,3.76351963,3694.2,3693.5,2.70739]
[1732960925485,0.55,3693.8,3693.6,0.02870474]
[1732960925752,0.80348017,3693.7,3693.2,2.70761]
[1732960925891,0.80348017,3693.6,3693.3,0.02875688]
[1732960926234,0.55,3693.6,3693.3,0.02875688]
[1732960926419,0.55,3693.8,3693.3,0.02875688]
[1732960926623,0.55,3693.6,3693.3,0.02875688]
[1732960926936,0.55,3693.6,3693.4,0.0287395]
[1732960927138,0.55,3693.8,3693.2,2.70761]
[1732960927438,3.50937,3693.9,3693.2,2.70761]
[1732960927439,0.55,3693.6,3693.3,0.02875688]
[1732960927658,0.55,3693.4,3693.3,0.02875688]
[1732960927999,0.55,3693.4,3692.9,0.2704]
[1732960928200,0.8022,3693.5,3692.9,2.97829]
[1732960928201,0.55,3693.2,3692.9,2.97829]
[1732960928895,0.55,3693.4,3692.9,2.97829]
[1732960929321,0.55,3693.4,3692.9,0.2704]
[1732960930200,3.25754,3693.4,3692.9,0.2704]
[1732960931152,0.55,3693.4,3692.9,2.97828]
[1732960932543,0.55,3693.4,3692.9,0.2704]
[1732960933822,0.55,3693.4,3692.9,2.97822]
[1732960934048,0.55,3693.4,3693.0,2.7078]
[1732960934244,0.55,3693.4,3692.9,0.2704]
[1732960938965,3.25759,3693.4,3692.9,0.2704]
[1732960939196,0.55,3693.2,3692.7,0.2704]
[1732960940650,0.55,3693.2,3692.4,5.88540264]
[1732960940651,0.55,3693.0,3692.5,2.97853]
[1732960940877,0.55,3692.8,3692.5,2.97853]
[1732960941282,0.55,3693.0,3692.6,0.02894063]
[1732960941653,0.55,3692.8,3692.6,0.02894063]
[1732960942054,0.55,3692.8,3692.6,2.73703063]
[1732960942461,0.55,3692.8,3692.6,0.02894063]
[1732960942960,0.55,3692.8,3692.6,2.73704063]
[1732960943577,0.55,3692.8,3692.6,0.02894063]
[1732960943578,1.3444,3692.7,3692.6,0.02894063]
[1732960943790,0.7944,3692.6,3691.6,0.2704]
[1732960943995,0.55,3692.5,3691.9,2.70861]
[1732960944296,0.55,3692.5,3691.9,2.7086]
[1732960944592,0.55,3692.5,3691.7,3.6664614]
[1732960944593,0.55,3692.3,3692.0,0.02913815]
[1732960944754,0.55,3692.3,3691.8,0.2704]
[1732960944952,0.55,3692.1,3691.8,2.97909]
[1732960945184,0.55,3692.3,3691.9,0.02922975]
[1732960946113,0.55,3692.1,3691.9,0.02922975]
[1732960946302,0.58385866,3692.0,3691.9,0.02922975]
[1732960947198,1.37825866,3692.0,3691.9,0.02922975]
[1732960947401,0.55,3691.9,3691.7,0.2704]
[1732960948045,0.55,3691.9,3691.6,2.70885]
[1732960948046,3.25883,3691.7,3691.0,2.70924]
[1732960948198,0.55,3691.4,3690.0,2.71002]
[1732960948403,0.55,3691.4,3690.5,0.92853107]
[1732960948639,0.55,3691.4,3691.0,2.70922]
[1732960950402,0.55,3691.4,3691.0,2.70924]
[1732960951468,0.7528,3692.2,3691.3,0.92853107]
[1732960951610,0.555542,3692.7,3692.0,0.92853107]
[1732960951815,0.7528,3692.9,3692.6,2.70811]
[1732960952555,0.7528,3692.9,3692.3,2.70826]
[1732960952863,0.55,3692.8,3692.5,2.70816]
[1732960953529,0.55,3692.8,3692.5,2.70814]
[1732960956273,0.55,3692.8,3692.6,0.02938776]
[1732960957580,1.02905746,3693.3,3693.0,2.70779]
[1732960957738,1.02905746,3693.3,3693.1,2.73686853]
[1732960957933,1.02905746,3693.3,3693.1,0.02918853]
[1732960958480,1.02905746,3693.3,3692.9,2.70789]
[1732960958667,1.02905746,3693.3,3693.2,0.02912109]
[1732960958837,1.02905746,3693.3,3693.0,2.70776]
[1732960959042,0.55,3693.2,3693.1,2.70774]
[1732960959376,0.55,3693.2,3693.1,2.7368733]
[1732960961299,0.55,3693.2,3693.1,3.28134463]
[1732960963235,0.55,3693.2,3693.1,0.0291333]
[1732960963421,0.55,3693.2,3693.0,2.70778]
[1732960963623,0.55,3693.2,3693.1,0.02909533]
[1732960964297,0.55,3693.2,3693.0,2.70781]
[1732960964500,0.55,3693.2,3693.1,0.02909533]
[1732960966238,0.55,3693.2,3693.1,2.73684533]
[1732960966459,0.55,3693.2,3693.1,0.02909533]
[1732960966797,0.55,3693.2,3693.1,2.73684533]
[1732960967000,0.55,3693.2,3693.1,0.02909533]
[1732960967232,0.55,3693.2,3692.9,2.70784]
[1732960967540,0.55,3693.2,3692.4,2.70821]
[1732960967541,0.55,3693.2,3693.1,0.02909533]
[1732960967698,0.55,3693.2,3692.7,2.70803]
[1732960967699,0.55,3693.1,3693.0,0.02911271]
[1732960967903,0.55,3693.0,3692.6,2.7081]
[1732960968407,0.55,3693.1,3692.6,2.7081]
[1732960969344,0.55,3693.1,3692.3,2.70833]
[1732960969649,0.55,3693.1,3692.4,2.7082]
[1732960969803,0.55,3693.1,3692.5,2.70817]
[1732960970139,0.55,3693.1,3692.7,2.70802]
[1732960970337,0.55,3693.1,3692.8,2.7079]
[1732960970841,0.55,3692.9,3692.5,2.70818]
[1732960971007,0.55,3692.9,3692.6,2.70809]
[1732960971947,0.55,3692.9,3692.8,2.70797]
[1732960972124,1.02905746,3693.3,3692.8,2.70797]
[1732960972125,0.55,3693.2,3692.8,2.70797]
[1732960972324,0.55,3693.2,3692.6,2.70809]
[1732960972521,0.55,3693.2,3692.9,2.70788]
[1732960972910,0.55,3693.2,3692.7,2.70799]
[1732960973948,0.55,3693.2,3692.8,2.70794]
[1732960974247,0.55,3693.2,3692.9,2.70786]
[1732960978060,0.55,3693.2,3692.5,2.70817]
[1732960978415,0.55,3693.2,3692.8,2.70795]
[1732960978923,0.55,3693.2,3692.5,2.70817]
[1732960978924,0.55,3693.2,3692.6,2.70807]
[1732960979124,0.55,3693.2,3692.5,2.70817]
[1732960979125,3.76465875,3693.2,3692.5,2.70817]
[1732960979343,0.55,3693.0,3692.5,2.70817]
[1732960980070,0.55,3692.8,3692.3,2.70833]
[1732960980256,0.55,3692.8,3692.6,2.70811]
[1732960980632,0.55,3692.8,3692.3,2.70833]
[1732960980855,0.55,3692.6,3692.3,2.70833]
[1732960981227,0.55,3692.8,3692.4,2.70824]
[1732960981434,0.58385206,3692.8,3692.2,2.70836]
[1732960981769,0.55,3692.8,3692.2,2.7084]
[1732960981956,0.55,3692.8,3692.5,2.70817]
[1732960982361,0.55,3692.8,3692.6,2.70806]
[1732960982577,0.55,3692.8,3692.4,2.70823]
[1732960982778,0.55,3692.8,3692.5,2.70817]
[1732960984175,0.55,3692.8,3692.1,2.70847]
[1732960984344,0.55,3692.8,3692.4,2.70826]
[1732960986177,0.55,3692.8,3692.5,0.02723668]
[1732960988586,0.55,3692.8,3692.3,2.70828]
[1732960988890,0.55,3692.8,3692.1,2.70847]
[1732960988891,0.7831,3692.7,3692.1,2.70847]
[1732960989046,0.7831,3692.7,3692.4,0.02725407]
[1732960989047,0.55,3692.6,3692.4,0.02725407]
[1732960989250,0.55,3692.6,3692.2,2.7084]
[1732960989446,0.55,3692.6,3692.5,0.02727121]
[1732960989687,0.7596,3692.5,3692.0,2.7085]
[1732960989894,0.55,3692.4,3692.0,2.7085]
[1732960990447,0.55,3692.4,3692.1,2.70848]
[1732960990734,0.55,3692.4,3691.9,1.083663]
[1732960990855,0.55,3692.4,3691.9,3.792233]
[1732960991058,0.55,3692.4,3692.0,2.70852]
[1732960992305,0.55,3692.4,3692.1,2.70845]
[1732960992506,0.55,3692.4,3692.3,2.70833]
[1732960993606,8.98,3693.2,3692.0,0.6500863]
[1732960993607,0.7596,3692.9,3692.6,2.70807]
[1732960994111,0.7596,3693.2,3692.8,2.70791]
[1732960994808,0.55,3693.1,3692.8,2.70791]
[1732960995608,0.55,3693.1,3692.6,2.70811]
[1732960996204,0.55,3692.9,3692.5,2.70812]
[1732960996502,0.55,3692.9,3692.6,2.70811]
[1732960996873,0.55,3692.9,3692.4,2.70825]
[1732960997211,0.55,3692.9,3692.6,2.70811]
[1732960997896,0.55,3692.9,3692.4,2.70821]
[1732960998619,0.55,3692.9,3692.4,2.70823]
[1732960998833,0.55,3692.9,3692.3,2.70826]
[1732960998973,0.55,3692.7,3692.1,2.70844]
[1732960999671,0.55,3692.7,3692.2,2.7084]
[1732961000680,0.7596,3692.6,3692.0,2.7085]
[1732961000873,0.7596,3692.4,3692.0,2.7085]
[1732961001074,0.55,3692.3,3692.0,2.7085]
[1732961001310,0.55,3692.3,3692.1,0.0256448]
[1732961001879,0.7596,3692.6,3692.1,2.7341248]
[1732961002078,0.55,3692.5,3692.1,2.74437397]
[1732961002505,0.55,3692.5,3692.1,2.70848]
[1732961006193,0.55,3692.5,3692.0,2.70855]
[1732961006413,0.55,3692.5,3692.0,2.979405]
[1732961006922,0.55,3692.5,3692.2,2.70838]
[1732961007727,0.55,3692.5,3692.2,2.7084]
[1732961014220,0.55,3692.5,3692.3,2.70831]
[1732961014404,0.55,3692.5,3692.2,2.7084]
[1732961015090,0.55,3692.5,3692.4,2.70826]
[1732961016840,0.55,3692.5,3692.2,2.7084]
[1732961017271,0.8282,3693.2,3692.7,2.70804]
[1732961017424,0.25366973,3693.1,3692.4,2.70826]
[1732961017621,0.86204819,3693.2,3691.9,2.70855]
[1732961017850,0.86204819,3693.2,3692.4,2.7082]
[1732961017851,0.8282,3693.0,3692.4,2.7082]
[1732961018166,3.46385314,3693.0,3692.4,2.7082]
[1732961018369,0.55,3692.8,3692.2,2.70839]
[1732961018566,0.55,3692.6,3692.3,2.70832]
[1732961019961,0.55,3692.6,3692.2,2.70835]
[1732961022051,0.55,3692.6,3692.2,2.70836]
[1732961022478,0.55,3692.6,3692.3,2.70833]
[1732961023218,0.55,3692.6,3691.6,3.46839]
[1732961023219,0.55,3692.6,3691.6,0.7596]
[1732961023431,0.55,3692.6,3692.0,2.7085]
[1732961024116,0.55,3692.6,3691.8,2.70869]
[1732961024321,0.55,3692.6,3692.1,2.70848]
[1732961025587,0.55,3692.6,3691.8,0.93000906]
[1732961025730,0.55,3692.6,3692.5,2.70819]
[1732961026842,0.55,3692.6,3692.4,2.70826]
[1732961030559,0.55,3692.6,3692.2,2.70839]
[1732961030732,0.55,3692.6,3692.5,2.70819]
[1732961034473,0.55,3692.8,3692.7,2.708]
[1732961037582,0.55,3693.1,3692.7,2.708]
[1732961038309,0.55,3693.1,3692.5,2.70819]
[1732961038517,0.55,3693.1,3692.8,2.70796]
[1732961039090,0.55,3692.9,3692.8,2.70796]
[1732961039407,0.55,3693.1,3692.8,2.70796]
[1732961044082,0.55,3692.9,3692.8,2.70796]
[1732961044278,0.55,3693.1,3692.8,2.70796]
[1732961044528,0.55,3692.9,3692.8,2.70796]
[1732961044725,0.55,3693.1,3692.8,2.70796]
[1732961045220,0.55,3693.1,3692.6,2.70811]
[1732961045221,0.55,3693.1,3693.0,2.70782]
[1732961045427,1.25544842,3694.1,3693.0,0.270782]
[1732961045722,0.55047859,3694.5,3693.9,2.70716]
[1732961045908,0.55047859,3694.5,3694.2,2.70689]
[1732961045909,0.25355185,3694.4,3694.2,2.70689]
[1732961046097,1.38317859,3694.5,3694.2,2.70689]
[1732961046302,1.52149645,3694.5,3694.2,2.70689]
[1732961046499,1.52149645,3694.5,3694.3,2.70685]
[1732961047235,0.55,3694.4,3694.3,2.70685]
[1732961049340,0.818,3695.3,3694.8,2.70643]
[1732961049548,0.25274126,3695.2,3694.8,2.70649]
[1732961049843,0.818,3695.3,3694.8,2.70649]
[1732961050016,0.818,3695.3,3694.6,2.70663]
[1732961050017,0.3524,3695.2,3694.9,2.70643]
[1732961050705,0.55,3695.1,3694.9,2.70643]
[1732961050915,0.55,3695.1,3694.7,2.70653]
[1732961051538,0.55,3695.1,3694.8,2.70646]
[1732961052412,0.55,3695.2,3694.9,2.70642]
[1732961053610,0.55,3695.2,3694.6,2.70663]
[1732961053834,0.55,3695.2,3694.8,2.70648]
[1732961054233,0.55,3695.2,3694.4,2.70679]
[1732961054452,0.55,3695.0,3694.4,2.70679]
[1732961054851,0.818,3694.8,3693.5,2.70739]
[1732961055048,0.55,3694.6,3694.1,2.70696]
[1732961055247,0.55,3694.6,3693.5,2.70745]
[1732961055451,0.55,3694.4,3693.4,0.93000906]
[1732961055749,0.55,3694.4,3693.9,2.7071]
[1732961056159,3.25683,3694.4,3693.7,2.7073]
[1732961056377,0.812,3694.3,3693.8,2.70721]
[1732961056582,0.54282765,3694.2,3693.8,2.70721]
[1732961056892,0.54282765,3694.2,3693.8,2.9879604]
[1732961057484,0.54282765,3694.2,3693.9,2.70711]
[1732961057952,0.54282765,3694.2,3693.8,0.2807504]
[1732961059697,0.54282765,3694.2,3693.7,2.70729]
[1732961059852,3.24979765,3694.2,3693.5,2.70745]
[1732961060049,0.54282765,3694.2,3693.6,2.70736]
[1732961060255,3.24977765,3694.2,3693.6,2.70736]
[1732961061057,3.28361633,3694.2,3693.6,2.70736]
[1732961061458,3.24977765,3694.2,3693.6,2.70736]
[1732961063111,0.55,3694.0,3693.0,0.270782]
[1732961063400,0.55,3694.0,3693.4,2.70746]
[1732961064262,0.55,3694.0,3693.2,2.70764]
[1732961064563,0.55,3694.0,3693.5,2.70744]
[1732961065779,3.257,3694.2,3693.5,2.70744]
[1732961071074,3.257,3694.2,3693.6,2.70736]
[1732961074796,0.55,3694.0,3693.4,2.70747]
[1732961075000,0.55,3694.0,3693.4,3.27227422]
[1732961075621,0.55,3694.0,3693.4,3.27231422]
[1732961075928,0.55,3694.0,3693.4,5.97978422]
[1732961076107,0.55,3694.0,3693.4,3.27227422]
[1732961076310,0.55,3694.0,3693.5,2.70745]
[1732961076493,0.55,3694.0,3693.5,3.30544142]
[1732961078091,3.25713,3694.0,3693.5,0.59799142]
[1732961078440,0.55,3693.6,3693.0,0.270782]
[1732961078643,0.55,3693.6,3692.6,2.70806]
[1732961078644,0.7894,3693.2,3692.6,2.70806]
[1732961078794,0.55,3693.1,3692.7,3.34256183]
[1732961080094,0.55,3693.1,3692.7,0.63454183]
[1732961080436,0.55,3693.1,3692.5,3.63735833]
[1732961080437,0.55,3693.1,3692.5,0.92917833]
[1732961080935,3.25777,3693.1,3692.5,0.92917833]
[1732961081182,3.25777,3693.1,3692.5,3.63735833]
[1732961081381,3.25777,3693.1,3692.5,0.92917833]
[1732961082447,3.25775,3693.1,3692.2,3.63756833]
[1732961082654,3.25795,3692.9,3692.2,3.63756833]
[1732961082862,3.25795,3692.9,3692.3,0.66169183]
[1732961083063,2.70798,3692.8,3692.3,0.66169183]
[1732961083378,0.55,3692.7,3692.3,0.66169183]
[1732961083573,0.55,3692.7,3692.2,0.92917833]
[1732961084073,0.55,3692.6,3692.2,0.92917833]
[1732961085083,0.55,3692.4,3692.0,0.2708]
[1732961085473,0.55,3692.2,3691.7,0.2708]
[1732961085655,0.7894,3692.1,3691.7,0.93258083]
[1732961085981,0.55,3692.0,3691.7,0.93258083]
[1732961086195,0.55,3692.0,3691.7,0.66178083]
[1732961087101,0.55,3692.0,3691.4,3.63813833]
[1732961087267,0.55,3691.8,3691.4,2.70896]
[1732961087757,0.55,3691.8,3691.2,0.92917833]
[1732961087963,0.55,3691.8,3691.3,2.70902]
[1732961089006,0.55,3691.8,3691.2,0.92917833]
[1732961089214,0.55,3691.8,3691.4,2.70899]
[1732961090308,0.55,3691.8,3691.5,2.70891]
[1732961093740,0.55,3691.8,3691.6,2.7088]
[1732961096444,0.55,3691.8,3691.7,2.70877]
[1732961102952,0.55,3691.8,3691.3,0.36383783]
[1732961103145,0.55,3691.8,3689.9,2.71009]
[1732961103146,0.55,3691.7,3691.4,2.70897]
[1732961103929,0.55,3691.7,3691.3,2.70905]
[1732961104117,0.55,3691.5,3691.1,2.70921]
[1732961104635,0.55,3691.5,3690.9,2.70936]
[1732961105031,0.55,3691.4,3691.2,2.70911]
[1732961105561,0.55,3691.4,3690.6,3.75681937]
[1732961105755,0.55,3691.4,3691.1,2.70916]
[1732961106249,0.55,3691.4,3690.7,0.37568194]
[1732961106747,0.55,3691.4,3691.2,2.70908]
[1732961107291,0.55,3691.4,3691.3,2.70907]
[1732961110865,0.8078,3692.1,3691.4,2.70899]
[1732961111178,0.8078,3691.9,3691.4,2.70899]
[1732961111586,0.25328346,3691.8,3691.5,2.70891]
[1732961111734,0.8078,3691.9,3691.5,2.70891]
[1732961112372,0.80339877,3691.8,3691.5,2.70891]
[1732961112584,0.55,3691.8,3691.5,2.70891]
[1732961112780,0.55,3691.8,3691.6,2.70878]
[1732961112943,0.55,3691.8,3691.7,2.70877]
[1732961114251,0.55,3692.0,3691.8,2.70866]
[1732961114489,0.55,3692.0,3691.7,2.70877]
[1732961114775,0.55,3692.0,3691.9,2.70863]
[1732961116250,0.55,3692.0,3691.7,2.70877]
[1732961116689,0.55,3692.0,3691.9,2.70863]
[1732961117499,0.55,3692.2,3691.8,2.7087]
[1732961117902,0.55,3692.2,3692.0,2.70852]
[1732961118106,0.55,3692.2,3692.1,2.70848]
[1732961118710,0.55,3692.2,3691.9,2.70859]
[1732961118869,0.55,3692.2,3692.0,2.70855]
[1732961120112,0.55,3692.2,3691.8,2.7087]
[1732961123720,0.55,3692.2,3692.0,2.70855]
[1732961125520,0.55,3692.2,3692.1,2.70848]
[1732961129316,0.55,3692.2,3692.1,3.250183]
[1732961129536,0.8111,3692.6,3692.1,3.250183]
[1732961129537,0.55,3692.5,3692.3,2.7083]
[1732961131154,0.55,3692.5,3692.1,2.70848]
[1732961131315,0.55,3692.5,3691.8,2.70869]
[1732961131316,0.8111,3692.2,3691.8,2.70869]
[1732961131519,0.55,3692.1,3691.8,2.70869]
[1732961132359,0.55,3692.1,3691.9,0.07385461]
[1732961132360,4.10350729,3692.0,3691.9,0.07385461]
[1732961132531,0.8111,3691.8,3691.2,0.00628902]
[1732961132731,0.8111,3691.8,3691.3,2.70906]
[1732961132941,0.84496061,3691.8,3691.3,2.78066212]
[1732961133158,0.8111,3691.6,3691.3,0.07160212]
[1732961133853,0.8111,3691.4,3691.3,0.07160212]
[1732961134061,1.06456926,3691.4,3691.3,0.07160212]
[1732961134749,1.61456926,3691.4,3691.3,0.07160212]
[1732961135428,4.32352051,3691.4,3691.3,0.07160212]
[1732961135630,4.05017,3691.3,3691.2,0.00628902]
[1732961136042,4.30361459,3691.3,3691.2,0.00628902]
[1732961136420,4.05017,3691.3,3691.2,0.00628902]
[1732961137167,4.45573076,3691.3,3691.2,0.00628902]
[1732961137458,0.7911,3690.9,3690.6,0.11808104]
[1732961137761,2.70951,3690.7,3689.5,2.98118]
[1732961138064,0.7911,3690.5,3689.9,2.71009]
[1732961138248,0.03387297,3690.4,3689.8,2.71016]
[1732961139223,0.55,3690.3,3689.8,2.71016]
[1732961140030,0.55,3690.3,3689.9,0.06994126]
[1732961141248,0.55,3690.1,3689.9,0.06994126]
[1732961141428,0.55,3690.1,3689.6,3.794703]
[1732961141631,0.55,3690.1,3689.8,0.06996005]
[1732961141832,0.55,3690.1,3689.6,2.7103]
[1732961142032,0.55,3690.1,3689.8,0.06996005]
[1732961142247,0.55,3690.1,3689.6,2.7103]
[1732961142444,0.55,3690.1,3689.8,0.06996005]
[1732961142642,0.55,3690.1,3689.6,2.7103]
[1732961142939,0.55,3690.1,3689.8,0.06996005]
[1732961143343,0.55,3690.1,3689.6,2.7103]
[1732961143539,0.55,3690.1,3689.9,0.06994126]
[1732961143863,0.55,3690.1,3690.0,0.06992247]
[1732961144065,1.3411,3690.1,3689.5,2.71037]
[1732961144372,1.3411,3689.9,3689.8,0.06996005]
[1732961144727,1.3411,3689.9,3689.3,2.71051]
[1732961144940,1.3411,3689.9,3689.8,0.07006892]
[1732961144941,4.05121,3689.9,3689.8,0.07006892]
[1732961145275,4.05121,3689.9,3689.1,3.795164]
[1732961145482,4.05121,3689.9,3689.8,0.07006892]
[1732961145679,4.727327,3689.9,3689.2,2.71057]
[1732961145836,4.727327,3689.9,3689.8,0.07006892]
[1732961146037,4.727327,3689.9,3689.2,2.71057]
[1732961146256,4.727327,3689.9,3689.8,0.07006892]
[1732961146567,4.727327,3689.9,3689.2,2.71057]
[1732961146764,2.017217,3689.9,3689.8,0.07006892]
[1732961147144,4.727317,3689.9,3689.1,2.71063]
[1732961147478,1.2937277,3689.8,3689.1,2.71063]
[1732961147977,1.2937277,3689.8,3688.9,2.71076]
[1732961148137,1.2937277,3689.8,3689.2,2.71059]
[1732961149377,0.55,3689.5,3688.8,1.084604]
[1732961149580,0.55,3689.3,3688.9,2.71081]
[1732961149973,0.55,3689.3,3688.9,2.71077]
[1732961150140,0.55,3689.3,3689.0,2.71074]
[1732961151070,0.55,3689.3,3688.8,2.7109]
[1732961151249,0.55,3689.3,3688.9,0.07045586]
[1732961153488,0.95439,3689.3,3688.8,2.71089]
[1732961153788,0.55,3689.3,3688.9,0.07045586]
[1732961154252,0.55,3689.3,3688.9,2.78125586]
[1732961154775,0.7835,3689.4,3688.9,2.78125586]
[1732961154776,0.7835,3689.4,3689.0,2.71076]
[1732961154959,3.25108178,3690.1,3689.0,2.71076]
[1732961154960,2.71017,3689.9,3689.2,2.71056]
[1732961155168,0.7835,3690.0,3688.9,0.99963419]
[1732961155169,0.7835,3690.0,3689.4,2.71045]
[1732961155363,2.30183,3690.0,3689.4,2.71045]
[1732961155581,2.30183,3690.0,3689.5,2.78078395]
[1732961155881,2.30183,3690.0,3689.5,0.07041395]
[1732961156077,2.30183,3690.0,3689.4,2.71045]
[1732961156279,0.55,3689.8,3689.5,0.07041395]
[1732961156481,1.377191,3689.8,3689.4,2.71041]
[1732961156650,0.55,3689.9,3689.2,2.71058]
[1732961156983,0.55,3689.7,3689.3,0.07045154]
[1732961157383,0.55,3689.7,3689.2,2.7106]
[1732961157567,0.55,3689.7,3689.4,0.07043275]
[1732961157904,0.55,3689.7,3689.5,0.07041395]
[1732961158102,0.404363,3689.6,3689.5,0.07041395]
[1732961158388,0.404363,3689.6,3689.2,2.7106]
[1732961158590,0.55,3689.7,3689.5,0.07041395]
[1732961158797,0.55,3689.7,3689.2,2.7106]
[1732961159001,0.55,3689.7,3689.6,0.07039515]
[1732961159466,0.55,3689.7,3689.4,2.71046]
[1732961159667,0.7834,3689.8,3689.6,2.71032]
[1732961159961,0.7834,3689.8,3689.7,0.07039019]
[1732961160368,0.7834,3690.2,3689.7,0.07039019]
[1732961160575,0.7834,3691.0,3690.1,0.92917833]
[1732961160790,0.7834,3691.0,3690.7,2.70947]
[1732961160951,2.70901,3691.4,3689.6,5.71026]
[1732961160952,0.7834,3691.3,3690.3,2.7098]
[1732961161157,3.93620241,3691.3,3690.8,0.07001929]
[1732961161353,3.93620241,3691.3,3690.1,2.70995]
[1732961161354,0.25266852,3691.2,3690.1,2.70995]
[1732961161604,0.25266852,3691.2,3690.7,2.70946]
[1732961161892,0.25266852,3691.2,3690.8,0.07001929]
[1732961162069,0.25266852,3691.2,3690.7,2.70946]
[1732961162391,1.03586011,3691.3,3690.8,0.07001929]
[1732961162597,1.41035212,3691.3,3690.8,2.77944929]
[1732961162757,1.41035212,3691.3,3690.8,2.70943]
[1732961163293,0.55,3691.2,3690.8,2.70943]
[1732961163451,0.55,3691.2,3690.9,0.07000051]
[1732961164353,0.55,3691.2,3690.7,2.70945]
[1732961164554,0.55,3691.2,3690.8,2.7094]
[1732961164848,0.55,3691.2,3690.8,2.77941929]
[1732961166753,0.55,3691.2,3690.9,2.7093]
[1732961167057,0.55,3691.2,3691.0,0.06998172]
[1732961167258,0.55,3691.2,3691.0,2.77926172]
[1732961167868,0.55,3691.2,3691.0,0.06998172]
[1732961168067,0.55,3691.2,3690.8,2.70939]
[1732961168306,0.55,3691.2,3690.9,2.77935051]
[1732961168614,0.55,3691.2,3691.0,2.70927]
[1732961168812,0.55,3691.2,3691.1,2.70921]
[1732961169100,0.55,3691.2,3691.1,2.77917294]
[1732961170065,0.25246011,3691.3,3691.1,2.77917294]
[1732961170066,0.25246011,3691.3,3691.2,2.70914]
[1732961170266,0.25246011,3691.3,3691.2,2.77908416]
[1732961171406,0.80246011,3691.3,3691.2,2.77908416]
[1732961171705,0.55,3691.5,3691.2,2.77908416]
[1732961173479,0.55,3691.3,3691.2,0.06994416]
[1732961173675,1.3189,3691.3,3690.6,2.70957]
[1732961173878,1.3189,3691.3,3690.7,0.06974434]
[1732961173879,4.02797,3691.3,3690.7,0.06974434]
[1732961174780,4.02797,3691.3,3690.7,2.77923434]
[1732961174990,4.02797,3691.3,3690.7,2.70949]
[1732961175190,4.02797,3691.3,3690.8,0.0695977]
[1732961175191,0.7689,3691.0,3690.8,0.0695977]
[1732961175392,0.55,3690.9,3690.8,0.0695977]
[1732961175593,0.55,3690.9,3690.3,2.70979]
[1732961175804,0.55,3690.9,3690.8,0.0695977]
[1732961176009,0.55,3690.9,3690.3,2.70979]
[1732961176320,0.55,3690.9,3690.4,0.06967284]
[1732961176889,0.55,3690.9,3690.4,2.77936284]
[1732961177084,0.55,3690.9,3690.5,2.70965]
[1732961177420,0.55,3690.9,3690.6,0.06971992]
[1732961179210,0.55,3690.9,3690.6,2.77924992]
[1732961180955,0.55,3690.9,3690.8,2.70943]
[1732961181439,0.55,3690.9,3690.8,2.77898683]
[1732961181790,0.55,3691.1,3690.8,2.77898683]
[1732961181989,0.55,3691.4,3691.0,2.70929]
[1732961182229,0.55,3691.4,3691.1,2.7092]
[1732961182423,0.55,3691.4,3691.1,2.77870049]
[1732961183317,0.55,3691.4,3691.1,0.06950049]
[1732961183645,0.55,3691.4,3690.8,2.70943]
[1732961183812,0.55,3691.4,3691.0,2.70926]
[1732961184326,0.55,3691.4,3691.1,2.77878649]
[1732961186498,0.55,3691.4,3691.1,0.06957649]
[1732961186800,0.55,3691.4,3691.2,2.70912]
[1732961186994,0.55,3691.4,3691.2,2.77867771]
[1732961188608,0.55,3691.4,3691.3,2.70907]
[1732961188817,0.55,3691.4,3691.3,0.06953893]
[1732961189017,0.55,3691.4,3691.1,2.70917]
[1732961189204,0.55,3691.4,3691.3,0.06953893]
[1732961189406,0.55,3691.4,3691.1,2.70917]
[1732961189603,0.55,3691.4,3691.3,0.06953893]
[1732961189825,0.55,3691.4,3691.1,2.70917]
[1732961190040,0.55,3691.4,3691.3,0.06953893]
[1732961190246,0.55,3691.4,3691.2,0.06955771]
[1732961190420,0.55,3691.4,3691.3,0.06953893]
[1732961190620,0.55,3691.4,3691.1,2.70917]
[1732961190816,0.55,3691.4,3691.3,0.06953893]
[1732961191150,0.80365556,3691.4,3691.3,0.06953893]
[1732961191445,0.80365556,3691.4,3691.0,2.70924]
[1732961191648,0.55,3691.4,3691.3,0.06953893]
[1732961191955,0.80365666,3691.4,3691.0,2.70924]
[1732961192151,0.80365666,3691.4,3690.8,2.70942]
[1732961192152,0.55,3691.4,3691.3,0.06953893]